[Event "4NCL Div 1 2024-25"]
[Site "England"]
[Date "2024.11.24"]
[Round "2.7"]
[White "Haydon, David L"]
[Black "Hng, Mei-En Emmanuelle"]
[Result "1/2-1/2"]
[Annotator "RC"]
[ECO "E62"]
[WhiteElo "2294"]
[BlackElo "2135"]
[PlyCount "206"]
[EventDate "2024.11.23"]
[EventType "team-tourn"]
[EventCountry "ENG"]
[SourceTitle "playchess.com"]
[Source "ChessBase"]
[SourceQuality "1"]
[TimeControl "40/6000+30:3000+30"]

1. Nf3 {[%emt 0:10:03]} d6 {[%emt 0:10:19]} 2. d4 {[%emt 0:01:06]} Nf6 {[%emt 0:00:39]} 3. c4 {[%emt 0:01:58]} g6 {[%emt 0:00:16]} 4. Nc3 {[%emt 0:00:40]} Bg7 {[%emt 0:00:15]} 5. g3 {[%emt 0:01:59]} O-O {[%emt 0:04:14]} 6. Bg2 {[%emt 0:01:00]} Na6 {[%emt 0:02:07]} 7. d5 {[%emt 0:02:47]} Bd7 {[%emt 0:03:56]} 8. Nd4 {[%emt 0:05:03]} Qc8 {[%emt 0:03:17]} 9. h3 {[%emt 0:00:54]} c5 {[%emt 0:06:35]} 10. dxc6 {[%emt 0:04:04]} bxc6 {[%emt 0:00:30]} 11. Be3 {[%emt 0:00:32]} Rd8 {[%emt 0:08:25]} 12. Rc1 {[%emt 0:08:15]} c5 {[%emt 0:19:00]} 13. Nc2 {[%emt 0:04:22]} Rb8 {[%emt 0:01:10]} 14. b3 {[%emt 0:00:36]} Nc7 {[%emt 0:07:07]} 15. Qd2 {[%emt 0:04:40]} Ne6 {[%emt 0:06:52]} 16. Bh6 {[%emt 0:05:41]} Bh8 {[%emt 0:01:47]} 17. Ne3 {[%emt 0:02:21]} Nd4 {[%emt 0:02:28]} 18. g4 {[%emt 0:03:07]} Bc6 {[%emt 0:08:19]} 19. Ned5 {[%emt 0:10:08]} Nxd5 {[%emt 0:03:47]} 20. cxd5 {[%emt 0:02:50]} Bd7 {[%emt 0:01:37]} 21. e3 {[%emt 0:01:25]} Nb5 {[%emt 0:01:16]} 22. Ne4 {[%emt 0:04:56]} Nc7 {[%emt 0:02:22]} 23. O-O {[%emt 0:02:37]} Rb4 {[%emt 0:07:55]} 24. Nxc5 {[%emt 0:04:16]} dxc5 {[%emt 0:01:41]} 25. Rxc5 {[%emt 0:00:08]} Rb5 {[%emt 0:00:12]} 26. Rfc1 {[%emt 0:02:30]} Rxc5 {[%emt 0:00:34]} 27. Rxc5 {[%emt 0:00:10]} Be5 {[%emt 0:00:09]} 28. Bf4 {[%emt 0:07:08]} Bxf4 {[%emt 0:00:43]} 29. exf4 {[%emt 0:00:07]} Qb8 {[%emt 0:00:07]} 30. d6 {[%emt 0:05:30]} Ne6 {[%emt 0:04:18]} 31. dxe7 {[%emt 0:00:32]} Nxc5 {[%emt 0:00:11]} 32. exd8=Q+ Qxd8 33. b4 {[%emt 0:00:33]} Ne6 {[%emt 0:00:11]} 34. f5 {[%emt 0:01:22]} Bc6 {[%emt 0:01:02]} 35. Qe3 {[%emt 0:01:30]} Qd1+ {[%emt 0:01:59]} 36. Bf1 {[%emt 0:00:20]} Qd5 {[%emt 0:00:50]} 37. f3 {[%emt 0:05:10]} gxf5 {[%emt 0:00:14]} 38. b5 {[%emt 0:00:58]} Bb7 {[%emt 0:01:39]} 39. gxf5 {[%emt 0:02:13]} Qxf5 {[%emt 0:00:28]} 40. Qxa7 {[%emt 0:00:13]} Qxf3 {[%emt 0:00:30]} 41. Qb8+ {[%emt 0:50:41]} Kg7 {[%emt 0:25:15]} 42. Qh2 {[%emt 0:00:00]} Ng5 {[%emt 0:08:55]} 43. Qg2 {[%emt 0:00:00]} Qe3+ {[%emt 0:00:31]} 44. Qf2 {[%emt 0:00:00]} Nf3+ {[%emt 0:05:50]} 45. Kg2 {[%emt 0:00:00]} Qg5+ {[%emt 0:05:15]} 46. Kh1 {[%emt 0:00:00]} Nh4+ {[%emt 0:04:37]} 47. Kh2 {[%emt 0:00:00]} Nf3+ {[%emt 0:00:13]} 48. Kh1 {[%emt 0:00:00]} Qc1 {[%emt 0:02:08]} 49. a4 {[%emt 0:00:00]} Nd2+ {[%emt 0:01:15]} 50. Kg1 {[%emt 0:00:00]} Nxf1 {[%emt 0:01:10]} 51. Qxf1 {[%emt 0:00:00]} Qg5+ {[%emt 0:00:12]} 52. Kf2 {[%emt 0:00:00]} Qf4+ {[%emt 0:00:19]} 53. Ke1 {[%emt 0:00:00]} Qb4+ {[%emt 0:00:05]} 54. Ke2 {[%emt 0:00:00]} Qb2+ {[%emt 0:01:00]} 55. Kd3 {[%emt 0:00:00]} Qa3+ {[%emt 0:00:36]} 56. Kd2 {[%emt 0:00:00]} Qb2+ {[%emt 0:01:03]} 57. Kd3 {[%emt 0:00:00]} Qa3+ {[%emt 0:00:34]} 58. Kd2 {[%emt 0:00:00]} Qb4+ {[%emt 0:00:37]} 59. Kd3 {[%emt 0:00:00]} Be4+ {[%emt 0:00:16]} 60. Ke3 {[%emt 0:00:00]} Qxa4 {[%emt 0:00:51]} 61. Qf4 {[%emt 0:00:00]} Qxb5 {[%emt 0:00:26]} 62. Qxe4 {[%emt 0:00:00]} Qb3+ {[%emt 0:00:14]} 63. Kf4 {[%emt 0:00:00]} Qxh3 {[%emt 0:00:38]} 64. Qe5+ {[%emt 0:00:00]} Kf8 {[%emt 0:00:47]} 65. Qd6+ {[%emt 0:00:00]} Ke8 {[%emt 0:00:06]} 66. Qb8+ {[%emt 0:00:00]} Ke7 {[%emt 0:00:26]} 67. Qb7+ {[%emt 0:00:00]} Qd7 {[%emt 0:00:14]} 68. Qe4+ {[%emt 0:00:00]} Qe6 {[%emt 0:00:15]} 69. Qxh7 {[%emt 0:00:00]} Qd6+ {[%emt 0:00:15]} 70. Kg4 {[%emt 0:00:00]} Qd1+ {[%emt 0:01:17]} 71. Kf4 {[%emt 0:00:29]} Qf1+ {[%emt 0:00:09]} 72. Kg4 {[%emt 0:00:25]} Qe2+ {[%emt 0:00:08]} 73. Kf4 {[%emt 0:00:12]} Qd2+ {[%emt 0:01:09]} 74. Kg4 {[%emt 0:00:07]} Qd4+ {[%emt 0:00:08]} 75. Kf3 {[%emt 0:00:21]} Qf6+ {[%emt 0:00:30]} 76. Kg4 {[%emt 0:00:09]} Qe6+ {[%emt 0:00:57]} 77. Kf4 {[%emt 0:00:44]} Qd6+ {[%emt 0:00:27]} 78. Kg4 {[%emt 0:00:12]} Qd4+ {[%emt 0:00:29]} 79. Kf3 {[%emt 0:00:14]} Qe5 {[%emt 0:00:39]} 80. Kg4 {[%emt 0:00:23]} Ke6 {[%emt 0:00:33]} 81. Qh6+ {[%emt 0:00:25]} f6 {[%emt 0:00:10]} 82. Qg6 {[%emt 0:00:10]} Qd4+ {[%emt 0:00:23]} 83. Kf3 {[%emt 0:00:15]} Qd1+ {[%emt 0:00:18]} 84. Ke3 {[%emt 0:00:15]} Qc1+ {[%emt 0:00:08]} 85. Kf3 {[%emt 0:00:09]} Qc6+ {[%emt 0:00:44]} 86. Kf4 {[%emt 0:00:46]} Qc1+ {[%emt 0:00:30]} 87. Kf3 {[%emt 0:00:12]} Qf1+ {[%emt 0:01:07]} 88. Ke3 {[%emt 0:00:09]} Qe1+ {[%emt 0:00:35]} 89. Kf3 {[%emt 0:00:10]} Qh1+ {[%emt 0:00:23]} 90. Ke3 {[%emt 0:00:21]} Qh3+ {[%emt 0:00:07]} 91. Kf4 {[%emt 0:00:09]} Qh4+ {[%emt 0:00:06]} 92. Kf3 {[%emt 0:00:10]} Qh1+ {[%emt 0:00:35]} 93. Ke3 {[%emt 0:00:28]} Qh3+ {[%emt 0:00:48]} 94. Kf4 {[%emt 0:00:12]} Qh4+ {[%emt 0:00:09]} 95. Kf3 {[%emt 0:00:08]} Qh3+ {[%emt 0:01:01]} 96. Kf4 {[%emt 0:00:07]} Qf1+ {[%emt 0:00:21]} 97. Ke3 {[%emt 0:00:02]} Qc1+ {[%emt 0:00:39]} 98. Kf3 {[%emt 0:00:07]} Qh1+ {[%emt 0:00:33]} 99. Ke3 {[%emt 0:00:15]} Qh3+ {[%emt 0:00:41]} 100. Kf4 {[%emt 0:00:13]} Qh4+ {[%emt 0:00:12]} 101. Kf3 {[%emt 0:00:06]} Qh3+ {[%emt 0:00:06]} 102. Kf4 {[%emt 0:00:05]} Qh4+ {[%emt 0:00:06]} 103. Kf3 {[%emt 0:00:04]} Qh3+ {[%emt 0:00:03]} 1/2-1/2

[Event "4NCL Div 1 2024-25"]
[Site "England"]
[Date "2024.11.24"]
[Round "2.8"]
[White "Brett, Andrew R"]
[Black "Toma, Katarzyna"]
[Result "0-1"]
[Annotator "RC"]
[ECO "E15"]
[WhiteElo "2069"]
[BlackElo "2184"]
[PlyCount "82"]
[EventDate "2024.11.23"]
[EventType "team-tourn"]
[EventCountry "ENG"]
[SourceTitle "playchess.com"]
[Source "ChessBase"]
[SourceQuality "1"]
[TimeControl "40/6000+30:3000+30"]

1. d4 {[%emt 0:10:05]} Nf6 {[%emt 0:10:11]} 2. c4 {[%emt 0:00:10]} e6 {[%emt 0:00:16]} 3. Nf3 {[%emt 0:00:14]} b6 {[%emt 0:00:39]} 4. g3 {[%emt 0:00:11]} Ba6 {[%emt 0:00:20]} 5. b3 {[%emt 0:00:13]} Bb4+ {[%emt 0:00:06]} 6. Bd2 {[%emt 0:00:11]} Be7 {[%emt 0:00:04]} 7. Nc3 {[%emt 0:00:20]} d5 {[%emt 0:00:57]} 8. cxd5 {[%emt 0:02:52]} exd5 {[%emt 0:00:09]} 9. b4 {[%emt 0:00:27]} O-O {[%emt 0:07:52]} 10. b5 {[%emt 0:00:47]} Bb7 {[%emt 0:00:05]} 11. Ne5 {[%emt 0:02:30]} c5 {[%emt 0:10:00]} 12. bxc6 {[%emt 0:02:24]} Nxc6 {[%emt 0:00:09]} 13. Nxc6 {[%emt 0:01:31]} Bxc6 {[%emt 0:00:04]} 14. Bg2 {[%emt 0:00:18]} Rc8 {[%emt 0:01:35]} 15. O-O {[%emt 0:01:57]} Qd7 {[%emt 0:04:36]} 16. Qb3 {[%emt 0:03:46]} Ne4 {[%emt 0:16:29]} 17. Nxe4 {[%emt 0:20:38]} dxe4 {[%emt 0:01:50]} 18. Bb4 {[%emt 0:07:59]} Bd5 {[%emt 0:02:50]} 19. Qa3 {[%emt 0:03:39]} Bxb4 {[%emt 0:03:47]} 20. Qxb4 {[%emt 0:00:39]} Rc2 {[%emt 0:00:37]} 21. Rfc1 {[%emt 0:09:44]} Rfc8 {[%emt 0:04:53]} 22. Qa3 {[%emt 0:22:14]} h6 {[%emt 0:04:56]} 23. Rxc2 {[%emt 0:04:07]} Rxc2 {[%emt 0:00:06]} 24. Qe3 {[%emt 0:01:14]} Qc6 {[%emt 0:03:39]} 25. f3 {[%emt 0:06:02]} Rc3 {[%emt 0:01:52]} 26. Qf4 {[%emt 0:00:38]} e3 {[%emt 0:06:36]} 27. h4 {[%emt 0:01:56]} h5 {[%emt 0:10:39]} 28. Kh2 {[%emt 0:01:10]} b5 {[%emt 0:04:07]} 29. Qe5 {[%emt 0:01:47]} g6 {[%emt 0:02:28]} 30. Qb8+ {[%emt 0:01:23]} Kg7 {[%emt 0:00:35]} 31. Qe5+ {[%emt 0:00:24]} Kh7 {[%emt 0:00:08]} 32. Qf4 {[%emt 0:01:09]} a5 {[%emt 0:01:00]} 33. a3 {[%emt 0:01:42]} Qc4 {[%emt 0:00:50]} 34. g4 {[%emt 0:00:56]} Qxe2 {[%emt 0:04:28]} 35. gxh5 {[%emt 0:00:36]} Rc2 {[%emt 0:00:44]} 36. hxg6+ {[%emt 0:00:24]} fxg6 {[%emt 0:00:06]} 37. Rg1 {[%emt 0:00:20]} Qxf3 {[%emt 0:00:36]} 38. Qg5 {[%emt 0:01:32]} Rxg2+ {[%emt 0:01:27]} 39. Rxg2 {[%emt 0:00:18]} Qxg2+ {[%emt 0:00:04]} 40. Qxg2 {[%emt 0:00:07]} Bxg2 {[%emt 0:00:02]} 41. Kxg2 {[%emt 0:50:05]} b4 {[%emt 0:50:08]} 0-1

[Event "4NCL Div 1 2024-25"]
[Site "England"]
[Date "2024.11.24"]
[Round "2.9"]
[White "Arkell, Keith C"]
[Black "Erdos, Viktor"]
[Result "1/2-1/2"]
[Annotator "TA"]
[ECO "D36"]
[WhiteElo "2359"]
[BlackElo "2533"]
[PlyCount "42"]
[EventDate "2024.11.23"]
[EventType "team-tourn"]
[EventCountry "ENG"]
[SourceTitle "playchess.com"]
[Source "ChessBase"]
[SourceQuality "1"]
[TimeControl "40/6000+30:3000+30"]

{[%evp 25,42,0,0,0,0,0,0,0,10,0,0,0,0,0,0,-22,-21,-40,-40]} 1. d4 {[%emt 0:10:03]} Nf6 {[%emt 0:10:06]} 2. Nf3 {[%emt 0:00:04]} d5 {[%emt 0:00:10]} 3. c4 {[%emt 0:00:04]} e6 {[%emt 0:00:04]} 4. Nc3 {[%emt 0:00:06]} c6 {[%emt 0:01:00]} 5. cxd5 {[%emt 0:00:14]} exd5 {[%emt 0:00:06]} 6. Qc2 {[%emt 0:00:05]} Be7 {[%emt 0:00:26]} 7. Bg5 {[%emt 0:00:08]} g6 {[%emt 0:00:17]} 8. e3 {[%emt 0:00:08]} Bf5 {[%emt 0:00:07]} 9. Bd3 {[%emt 0:00:05]} Bxd3 {[%emt 0:00:05]} 10. Qxd3 {[%emt 0:00:04]} Nbd7 {[%emt 0:00:06]} 11. Bh6 {[%emt 0:00:10]} Ng4 {[%emt 0:01:49]} 12. Bf4 {[%emt 0:00:06]} Ngf6 {[%emt 0:00:03]} 13. Bh6 {[%emt 0:01:19]} Bf8 {[%emt 0:04:33]} 14. Bxf8 {[%emt 0:00:06]} Kxf8 {[%emt 0:00:03]} 15. O-O {[%emt 0:00:08]} Qe7 {[%emt 0:10:46]} 16. b4 {[%emt 0:06:14][%cal Bb2b4,Bb4b5][%mdl 32] The position is equal.} Kg7 {[%emt 0:00:55]} 17. b5 {[%emt 0:04:40]} Rhc8 {[%emt 0:00:06]} 18. Rab1 {[%emt 0:04:49]} c5 {[%emt 0:07:24]} 19. dxc5 {[%emt 0:02:33]} Rxc5 {[%emt 0:00:10]} 20. Rfc1 {[%emt 0:02:31]} Rac8 {[%emt 0:01:31][%cal Oe7e4] [#] ...Qe4! would now be deadly.} 21. Ne2 {[%emt 0:08:49]} Rxc1+ {[%emt 0:42:44] Weighted Error Value: White=0.06 (flawless) /Black=0.00 (flawless) .  OK:         	White=3     	Black=4} 1/2-1/2

[Event "4NCL Div 1 2024-25"]
[Site "England"]
[Date "2024.11.24"]
[Round "2.10"]
[White "Royal, Shreyas"]
[Black "Pert, Richard G"]
[Result "1/2-1/2"]
[Annotator "RC"]
[ECO "B39"]
[WhiteElo "2520"]
[BlackElo "2399"]
[PlyCount "52"]
[EventDate "2024.11.23"]
[EventType "team-tourn"]
[EventCountry "ENG"]
[SourceTitle "playchess.com"]
[Source "ChessBase"]
[SourceQuality "1"]
[TimeControl "40/6000+30:3000+30"]

1. e4 {[%emt 0:10:03]} c5 {[%emt 0:11:32]} 2. Nf3 {[%emt 0:00:07]} Nc6 {[%emt 0:01:34]} 3. d4 {[%emt 0:00:09]} cxd4 {[%emt 0:00:06]} 4. Nxd4 {[%emt 0:00:04]} g6 {[%emt 0:00:08]} 5. c4 {[%emt 0:00:26]} Bg7 {[%emt 0:00:09]} 6. Be3 {[%emt 0:00:06]} Nf6 {[%emt 0:00:56]} 7. Nc3 {[%emt 0:00:06]} Ng4 {[%emt 0:01:06]} 8. Qxg4 {[%emt 0:01:45]} Nxd4 {[%emt 0:01:59]} 9. Qd1 {[%emt 0:04:31]} e5 {[%emt 0:00:31]} 10. Bd3 {[%emt 0:01:54]} d6 {[%emt 0:01:26]} 11. O-O {[%emt 0:01:59]} O-O {[%emt 0:00:10]} 12. Qd2 {[%emt 0:07:49]} Be6 {[%emt 0:01:13]} 13. Bxd4 {[%emt 0:02:56]} exd4 {[%emt 0:00:22]} 14. Ne2 {[%emt 0:00:07]} a5 {[%emt 0:14:21]} 15. Rac1 {[%emt 0:03:00]} Qb6 {[%emt 0:03:29]} 16. Rfd1 {[%emt 0:01:49]} a4 {[%emt 0:08:20]} 17. f4 {[%emt 0:13:56]} f5 {[%emt 0:09:24]} 18. Ng3 {[%emt 0:05:49]} Rae8 {[%emt 0:07:22]} 19. exf5 {[%emt 0:01:45]} Bxf5 {[%emt 0:01:37]} 20. Bxf5 {[%emt 0:09:44]} gxf5 {[%emt 0:00:44]} 21. Kh1 {[%emt 0:00:25]} Re3 {[%emt 0:01:41]} 22. Re1 {[%emt 0:02:42]} Qc5 {[%emt 0:01:37]} 23. Nf1 {[%emt 0:01:22]} Re4 {[%emt 0:01:07]} 24. Ng3 {[%emt 0:00:09]} Re3 {[%emt 0:00:07]} 25. Nf1 {[%emt 0:00:08]} Re4 {[%emt 0:00:05]} 26. Ng3 {[%emt 0:03:06]} Re3 {[%emt 0:42:24]} 1/2-1/2

[Event "4NCL Div 1 2024-25"]
[Site "England"]
[Date "2024.11.24"]
[Round "2.11"]
[White "Williams, Simon K"]
[Black "Csonka, Balazs"]
[Result "0-1"]
[Annotator "TA"]
[ECO "D42"]
[WhiteElo "2442"]
[BlackElo "2473"]
[PlyCount "84"]
[EventDate "2024.11.23"]
[EventType "team-tourn"]
[EventCountry "ENG"]
[SourceTitle "playchess.com"]
[Source "ChessBase"]
[SourceQuality "1"]
[TimeControl "40/6000+30:3000+30"]

{[%evp 20,84,0,0,6,0,0,-6,-6,-89,-97,-58,-25,-33,-35,-55,-50,-110,-111,-112,-62,-63,-65,-58,-60,-56,-53,-104,-96,-89,-50,-98,-103,-132,-126,-205,-213,-209,-200,-206,-178,-173,-172,-183,-166,-158,-175,-266,-279,-360,-341,-316,-324,-312,-234,-269,-231,-256,-247,-258,-260,-323,-320,-411,-410,-417,-418]} 1. d4 {[%emt 0:10:14]} Nf6 {[%emt 0:10:06]} 2. c4 {[%emt 0:01:10]} e6 {[%emt 0:00:10]} 3. Nf3 {[%emt 0:01:01]} d5 {[%emt 0:00:09]} 4. Nc3 {[%emt 0:00:46]} c5 {[%emt 0:00:28]} 5. cxd5 {[%emt 0:01:13]} Nxd5 {[%emt 0:00:10]} 6. e3 {[%emt 0:06:02]} Nc6 {[%emt 0:00:33]} 7. Bd3 {[%emt 0:00:38]} Be7 {[%emt 0:00:16]} 8. O-O {[%emt 0:00:41]} O-O {[%emt 0:00:12]} 9. a3 {[%emt 0:04:05]} cxd4 {[%emt 0:00:16]} 10. exd4 {[%emt 0:00:08]} Bf6 {[%emt 0:00:09]} 11. Re1 {[%emt 0:11:10]} Bd7 {[%emt 0:04:14]} 12. Bc2 {[%emt 0:05:46]} Nce7 {[%emt 0:03:07]} 13. h4 {[%emt 0:02:44]} Bc6 {[%emt 0:08:27] The position is equal.} 14. Ng5 {[%emt 0:11:39]} (14. Qd3 $11 {keeps the balance.} g6 15. h5) 14... Nf5 $17 {[%emt 0:32:01]} 15. Qg4 {[%emt 0:10:30]} h6 {[%emt 0:16:36]} (15... Bxd4 16. Bxf5 Nf6 17. Bxh7+ Nxh7 18. Be3 Bxe3 19. Rxe3 $11) (15... g6 {feels hotter.} 16. h5 Bxd4 17. hxg6 Bxf2+ 18. Kxf2 Qb6+) 16. Nf3 {[%emt 0:08:19]} Nde7 {[%emt 0:05:32] Hoping for ...Bxf3.} (16... Bxh4 $2 17. Bxf5 Bxf2+ 18. Kxf2 $18) (16... Nxh4 {with more complications.} 17. Ne5 Nxc3 18. Nxc6 Ne2+) 17. Ne4 $1 {[%emt 0:04:30]} Bxd4 {[%emt 0:05:54]} 18. Nxd4 {[%emt 0:19:47]} ({Better is} 18. Rd1 $15 h5 19. Qxh5 Bxe4 20. Nxd4 Nxd4 (20... Bxc2 21. Nxc2 Qb6 22. b4 $15) 21. Bxe4) 18... Qxd4 {[%emt 0:05:43]} 19. Rb1 {[%emt 0:04:23] [#]} Rfd8 {[%emt 0:10:36]} (19... Ng6 $1 $17 20. h5 Ne5) 20. b4 $15 {[%emt 0:00:17]} Bxe4 {[%emt 0:01:51]} 21. Bxe4 {[%emt 0:00:28]} Qb6 $36 {[%emt 0:00:52][%mdl 2048] Black fights for an advantage.} 22. h5 {[%emt 0:01:38]} Rd7 {[%emt 0:01:04]} (22... Rac8 {is more complex.} 23. Bb2 Rd2 24. Qf4 Qd6) 23. Qf4 {[%emt 0:01:54]} ({White should try} 23. Bb2 $15) 23... Nd5 $17 {[%emt 0:01:49]} 24. Qf3 {[%emt 0:00:32]} Rad8 {[%emt 0:00:55]} 25. Bb2 {[%emt 0:00:31] Black converts the advantage convincingly.} (25. Bxf5 $15 exf5 26. Bb2) 25... Nd4 {[%emt 0:00:25]} 26. Qg3 {[%emt 0:00:09]} Nf6 {[%emt 0:00:08] A dynamic duo of knights.} 27. Qh4 {[%emt 0:02:08]} (27. Bxd4 $17 Qxd4 (27... Rxd4 28. Bf3 $17) 28. Bf3) 27... Qb5 $19 {[%emt 0:01:04] [#] aiming for ...Ne2+.} 28. Kh1 {[%emt 0:01:04]} b6 {[%emt 0:01:08]} (28... Nxh5 29. Rbd1 Qg5 30. Qxg5 hxg5 31. Bxb7) 29. Rbc1 {[%emt 0:00:57]} Qxh5 {[%emt 0:00:23]} 30. Qxh5 {[%emt 0:00:04]} Nxh5 {[%emt 0:00:03]} 31. Red1 {[%emt 0:00:39]} Nf6 {[%emt 0:00:35]} 32. Bb1 {[%emt 0:00:05] Threatens to win with Rxd4.} Kf8 {[%emt 0:00:39]} 33. f3 {[%emt 0:00:51]} (33. g3 $142) 33... Ke7 {[%emt 0:00:41]} 34. a4 {[%emt 0:00:04]} ({Don't play} 34. Rxd4 Rxd4 35. Bxd4 Rxd4 $19) 34... Ne2 {[%emt 0:00:38]} 35. Rxd7+ {[%emt 0:00:22]} Rxd7 {[%emt 0:00:01]} ({Inferior is} 35... Nxd7 36. Rc7 $11) 36. Re1 {[%emt 0:00:06]} Nf4 {[%emt 0:00:34]} 37. b5 {[%emt 0:00:31]} Nd3 {[%emt 0:00:25]} 38. Ba3+ {[%emt 0:00:11]} Ke8 {[%emt 0:00:26]} 39. Rf1 {[%emt 0:00:20]} Rd4 {[%emt 0:01:05]} 40. Bc2 {[%emt 0:00:10]} Nd5 {[%emt 0:00:30] And now ...Ne3 would win.} 41. Bb3 {[%emt 0:51:30]} Nc3 {[%emt 0:24:23]} 42. g3 {[%emt 0:00:00] Prevents Rh4+} Nxa4 {[%emt 0:03:37] Weighted Error Value: White=0.26 (precise) /Black=0.11 (very precise) .  Mistake:       	White=6     	Black=1      Inaccurate:     	---       	Black=2      OK:         	White=10    	Black=17     Best:        	---       	Black=1      Strong:       	White=1     	---} 0-1

[Event "4NCL Div 1 2024-25"]
[Site "England"]
[Date "2024.11.24"]
[Round "2.12"]
[White "Jaracz, Pawel"]
[Black "Hebden, Mark L"]
[Result "1/2-1/2"]
[Annotator "TA"]
[ECO "A24"]
[WhiteElo "2473"]
[BlackElo "2372"]
[PlyCount "51"]
[EventDate "2024.11.23"]
[EventType "team-tourn"]
[EventCountry "ENG"]
[SourceTitle "playchess.com"]
[Source "ChessBase"]
[SourceQuality "1"]
[TimeControl "40/6000+30:3000+30"]

{[%evp 16,51,0,8,13,15,39,31,51,43,47,64,48,52,42,41,49,47,60,60,60,60,58,55,62,45,66,56,56,60,63,60,68,63,87,59,135,54]} 1. c4 {[%emt 0:11:00]} Nf6 {[%emt 0:11:30]} 2. Nc3 {[%emt 0:00:20]} g6 {[%emt 0:00:54]} 3. g3 {[%emt 0:00:12]} Bg7 {[%emt 0:00:18]} 4. Bg2 {[%emt 0:00:05]} O-O {[%emt 0:00:46]} 5. e3 {[%emt 0:02:07]} d6 {[%emt 0:04:04]} 6. Nge2 {[%emt 0:04:43]} e5 {[%emt 0:01:09]} 7. O-O {[%emt 0:05:23]} Re8 {[%emt 0:03:17]} 8. d3 {[%emt 0:00:32]} c6 {[%emt 0:05:38]} 9. e4 {[%emt 0:00:31]} Na6 {[%emt 0:03:16]} 10. h3 {[%emt 0:01:19]} Nc5 {[%emt 0:07:07]} 11. Be3 {[%emt 0:07:04]} a5 {[%emt 0:01:20] White is slightly better.} 12. Qd2 {[%emt 0:15:58]} b5 {[%emt 0:07:10]} 13. cxb5 {[%emt 0:02:27]} cxb5 {[%emt 0:00:23]} 14. Nxb5 {[%emt 0:02:07]} Ba6 {[%emt 0:00:43]} 15. Bxc5 {[%emt 0:00:29]} dxc5 {[%emt 0:03:31]} 16. a4 {[%emt 0:00:22]} Qb6 {[%emt 0:05:18][%cal Oe8d8]} 17. Nec3 {[%emt 0:02:13]} Rad8 {[%emt 0:01:04]} 18. Qc2 {[%emt 0:03:12]} Re7 {[%emt 0:01:11]} 19. Rfd1 {[%emt 0:05:38]} h5 {[%emt 0:03:28]} 20. Na3 {[%emt 0:07:38]} h4 {[%emt 0:03:34]} 21. Nc4 {[%emt 0:01:40]} ({Don't play} 21. gxh4 Nh5 $11) 21... Bxc4 {[%emt 0:02:57]} 22. dxc4 {[%emt 0:00:04]} hxg3 {[%emt 0:01:34]} 23. fxg3 {[%emt 0:00:09]} Rd4 {[%emt 0:00:14]} 24. Nb5 {[%emt 0:00:29]} Nh5 {[%emt 0:00:35]} 25. Qb3 {[%emt 0:09:04]} Qf6 {[%emt 0:05:58]} 26. Kh2 {[%emt 0:28:44] Weighted Error Value: White=0.05 (flawless) /Black=0.13 (very precise) .  Mistake:       	White=1     	Black=1      Inaccurate:     	White=1     	---        OK:         	White=6     	Black=5} (26. Rf1 $16 Qe6 27. Nxd4 exd4 28. g4) 1/2-1/2

[Event "4NCL Div 1 2024-25"]
[Site "England"]
[Date "2024.11.24"]
[Round "2.13"]
[White "Pert, Nicholas"]
[Black "Grieve, Harry"]
[Result "1/2-1/2"]
[Annotator "TA"]
[ECO "D37"]
[WhiteElo "2527"]
[BlackElo "2464"]
[PlyCount "103"]
[EventDate "2024.11.23"]
[EventType "team-tourn"]
[EventCountry "ENG"]
[SourceTitle "playchess.com"]
[Source "ChessBase"]
[SourceQuality "1"]
[TimeControl "40/6000+30:3000+30"]

{[%evp 25,103,31,38,34,30,35,25,30,42,0,13,0,13,0,0,0,0,0,0,-10,-9,-7,0,-8,0,0,0,-9,-6,-12,0,0,32,31,29,29,51,51,51,51,51,51,51,51,51,51,51,51,49,24,24,24,24,24,24,24,24,24,24,24,24,24,24,24,24,24,24,24,24,24,24,24,24,24,24,24,30,0,24,0]} 1. d4 {[%emt 0:10:03]} d5 {[%emt 0:10:04]} 2. c4 {[%emt 0:00:05]} e6 {[%emt 0:00:03]} 3. Nf3 {[%emt 0:00:07]} Nf6 {[%emt 0:00:03]} 4. Nc3 {[%emt 0:00:19]} a6 {[%emt 0:00:05]} 5. cxd5 {[%emt 0:00:32]} exd5 {[%emt 0:00:02]} 6. Bg5 {[%emt 0:00:24] D37: Queen's Gambit Declined: 5 Bf4.} Be6 {[%emt 0:00:06]} 7. e3 {[%emt 0:00:54]} Nbd7 {[%emt 0:00:05]} 8. h3 {[%emt 0:00:23]} Bd6 {[%emt 0:00:22]} 9. Bd3 {[%emt 0:00:32]} c6 {[%emt 0:00:05]} 10. Bf4 {[%emt 0:01:18]} Qc7 {[%emt 0:00:05]} 11. Ne2 {[%emt 0:01:01]} O-O {[%emt 0:07:54]} 12. O-O {[%emt 0:00:29]} Rfe8 {[%emt 0:02:44]} 13. Qc2 {[%emt 0:01:14]} g6 {[%emt 0:02:12]} 14. b4 $146 {[%emt 0:03:53]} ({Predecessor:} 14. Bxd6 Qxd6 15. Ng3 Kg7 16. Rad1 Rad8 17. Qc3 Qc7 18. b4 Nb6 19. Ne5 Nfd7 20. Nf3 Nf6 21. Ne5 Nfd7 22. Nf3 {½-½ Verma,S (1829)-Seymour,T (2076) Leamington Spa 4NCL op-A 28th 2022 (5)}) 14... Nh5 {[%emt 0:03:29]} 15. Bxd6 {[%emt 0:09:02]} Qxd6 {[%emt 0:00:41]} 16. a4 {[%emt 0:10:14]} Ng7 {[%emt 0:03:28]} 17. Rab1 {[%emt 0:16:56]} Bf5 {[%emt 0:03:18]} 18. Nf4 {[%emt 0:01:54]} Nb6 {[%emt 0:03:31]} 19. Nd2 {[%emt 0:01:29]} Qe7 {[%emt 0:06:40]} 20. Rfc1 {[%emt 0:10:28]} Bxd3 {[%emt 0:07:10]} 21. Nxd3 {[%emt 0:00:10]} Nf5 {[%emt 0:00:04]} 22. a5 {[%emt 0:08:35]} Nc8 {[%emt 0:02:28]} 23. Nc5 {[%emt 0:01:00]} Ncd6 {[%emt 0:00:55]} 24. Re1 {[%emt 0:01:53]} h5 {[%emt 0:05:13]} 25. Nf3 {[%emt 0:01:53]} Nh4 {[%emt 0:05:48]} 26. Qe2 {[%emt 0:02:33]} Nxf3+ {[%emt 0:08:00]} 27. Qxf3 {[%emt 0:00:23]} Qc7 {[%emt 0:07:19]} 28. Qf4 {[%emt 0:01:47]} Re7 {[%emt 0:00:53]} 29. g4 {[%emt 0:00:39]} hxg4 {[%emt 0:09:05]} 30. hxg4 {[%emt 0:00:06]} Nc4 {[%emt 0:00:40]} 31. Qxc7 {[%emt 0:01:30]} Rxc7 {[%emt 0:00:01]} 32. Kg2 {[%emt 0:00:12]} Kg7 {[%emt 0:04:16]} 33. Rh1 {[%emt 0:00:25]} Re7 {[%emt 0:01:34]} 34. Rh3 {[%emt 0:02:40]} Rh8 {[%emt 0:01:45]} 35. Rxh8 {[%emt 0:00:59]} Kxh8 {[%emt 0:00:02]} 36. Rh1+ {[%emt 0:00:34]} Kg7 {[%emt 0:00:25]} 37. Kf3 {[%emt 0:00:43]} g5 {[%emt 0:05:21]} 38. Ke2 {[%emt 0:02:59]} f6 {[%emt 0:03:50]} 39. Rh3 {[%emt 0:08:35]} Kg8 {[%emt 0:02:44]} 40. Rh6 {[%emt 0:01:42]} Kg7 {[%emt 0:00:22]} 41. Rh1 {[%emt 0:50:06]} Kg8 {[%emt 0:53:10]} 42. Kd3 {[%emt 0:02:23]} Nb2+ {[%emt 0:01:28]} 43. Kc3 {[%emt 0:00:49]} Nc4 {[%emt 0:00:04]} 44. Rh5 {[%emt 0:02:32]} Kg7 {[%emt 0:00:00]} 45. Rh3 {[%emt 0:00:00]} Kg8 {[%emt 0:00:00]} 46. Rh2 {[%emt 0:00:00]} Kg7 {[%emt 0:00:00]} 47. Rh5 {[%emt 0:00:00]} Nd6 {[%emt 0:00:00]} 48. Kd3 {[%emt 0:00:00]} Nc4 {[%emt 0:00:00]} 49. Rh1 {[%emt 0:00:00]} Nb2+ {[%emt 0:00:00]} 50. Kc2 {[%emt 0:00:00]} Nc4 {[%emt 0:00:00]} 51. Kc3 {[%emt 0:00:00]} Kg8 {[%emt 0:00:00]} 52. Kd3 {[%emt 0:00:00]} 1/2-1/2